bitfinex-derivatives/quotes_BNBF0:USTF0_20250510
["timestamp","ask_amount","ask_price","bid_price","bid_amount"]
[1746902394195,0.466,654.46,653.18,0.2809463]
[1746902394697,0.26610794,654.47,653.18,0.2809463]
[1746902395191,0.26610794,654.47,653.17,1.23393963]
[1746902395492,0.26187716,654.46,653.18,0.28095121]
[1746902396699,0.52798307,654.47,653.18,0.28095121]
[1746902397101,0.52798307,654.47,653.19,0.96783169]
[1746902397102,0.26610591,654.47,653.19,0.96783169]
[1746902397401,0.327,654.46,653.2,0.28095121]
[1746902397800,0.2618763,654.45,653.2,0.28095121]
[1746902398701,0.327,654.46,653.2,0.28095121]
[1746902399101,0.327,654.46,653.25,0.96783169]
[1746902401798,0.327,654.46,653.2,0.26609879]
[1746902402307,0.327,654.46,653.21,0.28096969]
[1746902402698,0.59311608,654.46,653.2,0.26611608]
[1746902405402,0.327,654.46,653.12,0.30622243]
[1746902405807,0.26613745,654.45,653.2,0.26613745]
[1746902406000,0.26613745,654.45,653.13,0.28101145]
[1746902407707,0.26613745,654.45,653.14,0.26613745]
[1746902408407,0.26196467,654.44,653.15,0.28101145]
[1746902411708,0.26613542,654.43,653.14,0.26613542]
[1746902412309,0.26196467,654.42,653.15,0.28101145]
[1746902414512,0.26613338,654.41,653.15,0.28101145]
[1746902414712,0.26196467,654.4,653.15,0.28101145]
[1746902415712,0.301,654.39,653.15,0.28101145]
[1746902415913,0.26196467,654.38,653.15,0.28101145]
[1746902416515,0.26196467,654.38,653.14,0.26613338]
[1746902417214,0.26196467,654.38,653.12,0.30622243]
[1746902417510,0.26617715,654.37,653.14,0.26617715]
[1746902417717,0.26196467,654.36,653.14,0.26617715]
[1746902420517,0.26196467,654.36,653.15,0.28108575]
[1746902421917,0.26617715,654.37,653.15,0.28108575]
[1746902423316,0.301,654.39,653.15,0.28108575]
[1746902423516,0.26615882,654.36,653.15,0.28108575]
[1746902426221,0.301,654.39,653.15,0.28108575]
[1746902426518,0.26615068,654.35,653.15,0.28108575]
[1746902428615,0.26185668,654.34,653.15,0.28108575]
[1746902429524,0.26617511,654.33,653.15,0.28108575]
[1746902429921,0.26617511,654.33,653.14,0.26617511]
[1746902430422,0.26185668,654.32,653.14,0.26617511]
[1746902432223,0.26185668,654.32,652.83,0.96783169]
[1746902432417,0.26185668,654.32,653.14,0.26620667]
[1746902432723,0.301,654.39,652.82,0.96783169]
[1746902432724,0.26620667,654.31,652.82,0.96783169]
[1746902433225,0.26185668,654.3,652.83,0.28106934]
[1746902434525,0.26185668,654.3,652.84,0.26621991]
[1746902434926,0.26185668,654.3,652.86,0.30634439]
[1746902435725,0.26185668,654.3,652.87,0.28106934]
[1746902436226,0.301,654.39,652.87,0.28106934]
[1746902436227,0.26185668,654.38,652.87,0.28106934]
[1746902436526,0.26621583,654.29,652.87,0.28106934]
[1746902436821,0.26185668,654.28,652.87,0.28106934]
[1746902437027,0.52807251,654.28,652.87,0.28106934]
[1746902437220,0.26621583,654.28,652.87,0.28106934]
[1746902437425,0.26185668,654.27,652.87,0.28106934]
[1746902438625,0.26621583,654.26,652.87,0.28106934]
[1746902439129,0.26185668,654.25,652.87,0.28106934]
[1746902439325,0.26185668,654.25,652.89,0.30633031]
[1746902439626,0.26185668,654.25,652.9,0.28106934]
[1746902440424,0.26185668,654.25,652.92,0.30631624]
[1746902440824,0.26185668,654.25,652.93,0.28106934]
[1746902441029,0.26185668,654.25,652.95,0.30630216]
[1746902441327,0.26185668,654.25,652.96,0.28106934]
[1746902441522,0.2661171,654.24,652.96,0.28106934]
[1746902442123,0.26185668,654.23,652.96,0.28106934]
[1746902442829,0.345,654.22,652.96,0.28106934]
[1746902443029,0.345,654.22,652.98,0.30628809]
[1746902443331,0.345,654.22,652.99,0.28106934]
[1746902443530,0.345,654.22,653.01,0.30627402]
[1746902444030,0.345,654.22,653.02,0.28106934]
[1746902444230,0.345,654.22,653.04,0.30625995]
[1746902447633,0.26622704,654.21,653.04,0.30625995]
[1746902448937,0.26622704,654.21,653.05,0.28110501]
[1746902449335,0.26622704,654.21,653.07,0.30624588]
[1746902450236,0.345,654.22,653.07,0.30624588]
[1746902450536,0.26621074,654.2,653.07,0.30624588]
[1746902451031,0.26621074,654.2,653.08,0.28108992]
[1746902452936,0.26207228,654.19,653.1,0.30623181]
[1746902453438,0.26207228,654.19,653.11,0.28108992]
[1746902453633,0.5282708,654.19,653.11,0.28108992]
[1746902454033,0.26207228,654.18,653.11,0.28108992]
[1746902454339,0.26207228,654.18,653.13,0.30621775]
[1746902454638,0.26207228,654.18,653.14,0.28108992]
[1746902454832,0.26207228,654.18,653.16,0.30620368]
[1746902455137,0.26207228,654.18,653.17,0.28108992]
[1746902455335,0.26207228,654.18,653.19,0.30618962]
[1746902455937,0.26207228,654.18,653.2,0.28108992]
[1746902456133,0.26207228,654.18,653.22,0.30617556]
[1746902456539,0.52819752,654.18,653.22,0.30617556]
[1746902456736,0.26612524,654.18,653.22,0.30617556]
[1746902457037,0.26207228,654.17,653.22,0.30617556]
[1746902458637,0.341,654.16,653.22,0.30617556]
[1746902459038,0.26207228,654.15,653.22,0.30617556]
[1746902460845,0.341,654.16,653.22,0.30617556]
[1746902461144,0.26203799,654.15,653.22,0.30617556]
[1746902465550,0.26622194,654.14,653.22,0.30617556]
[1746902466046,0.26203799,654.13,653.22,0.30617556]
[1746902468847,0.266225,654.12,653.22,0.30617556]
[1746902471253,0.26223649,654.11,653.22,0.30617556]
[1746902471653,0.52836173,654.11,653.22,0.30617556]
[1746902472349,0.26612524,654.11,653.22,0.30617556]
[1746902473154,0.26223509,654.1,653.22,0.30617556]
[1746902473355,0.54623509,654.1,653.22,0.30617556]
[1746902473654,0.26223509,654.09,653.22,0.30617556]
[1746902474450,0.26223509,654.09,653.22,0.29042005]
[1746902474650,0.26633299,654.08,653.22,0.29042005]
[1746902475050,0.26223509,654.07,653.22,0.29042005]
[1746902477051,0.26223509,654.07,652.8,0.96783169]
[1746902477255,0.26223509,654.07,652.81,0.30636785]
[1746902477550,0.26636968,654.06,652.81,0.30636785]
[1746902478053,0.26223509,654.05,652.81,0.30636785]
[1746902480659,0.26645942,654.04,652.81,0.30636785]
[1746902481062,0.26223509,654.03,652.81,0.30636785]
[1746902484759,0.26223509,654.02,652.81,0.30636785]
[1746902485164,0.26223509,654.01,652.81,0.30636785]
[1746902485670,0.26223509,654.03,652.81,0.30636785]
[1746902486466,0.26652779,654.02,652.81,0.30636785]
[1746902486766,0.26223509,654.01,652.81,0.30636785]
[1746902489468,0.26652064,654.0,652.81,0.30636785]
[1746902489864,0.26223509,653.99,652.81,0.30636785]
[1746902492869,0.26652677,653.98,652.81,0.30636785]
[1746902493470,0.26093168,653.97,652.81,0.30636785]
[1746902495669,0.26641964,653.96,652.81,0.30636785]
[1746902496172,0.26093168,653.95,652.81,0.30636785]
[1746902496575,0.54593168,653.95,652.81,0.30636785]
[1746902496874,0.26093168,653.94,652.81,0.30636785]
[1746902498671,0.26655126,653.93,652.81,0.30636785]
[1746902499971,0.26093168,653.92,652.81,0.30636785]
[1746902504473,0.26655024,653.91,652.81,0.30636785]
[1746902504979,0.26093168,653.9,652.81,0.30636785]
[1746902507575,0.2665431,653.89,652.81,0.30636785]
[1746902507780,0.26093168,653.88,652.81,0.30636785]
[1746902510583,0.26652268,653.87,652.81,0.30636785]
[1746902510983,0.26093168,653.86,652.81,0.30636785]
[1746902513586,0.26649309,653.85,652.81,0.30636785]
[1746902513781,0.26093168,653.84,652.81,0.30636785]
[1746902516191,0.26649309,653.85,652.81,0.30636785]
[1746902516389,0.285,653.95,652.81,0.30636785]
[1746902516581,0.52736707,653.84,652.81,0.30636785]
[1746902516887,0.26089031,653.84,652.81,0.30636785]
[1746902517084,0.26089031,653.83,652.81,0.30636785]
[1746902517288,0.26089031,653.94,652.81,0.30636785]
[1746902517789,0.2664737,653.93,652.81,0.30636785]
[1746902518289,0.26089031,653.92,652.81,0.30636785]
[1746902519696,0.26648799,653.91,652.81,0.30636785]
[1746902520093,0.26089031,653.9,652.81,0.30636785]
[1746902522598,0.26648084,653.89,652.81,0.30636785]
[1746902522801,0.26089031,653.88,652.81,0.30636785]
[1746902523100,0.26089031,653.87,652.81,0.30636785]
[1746902523494,0.26089031,653.86,652.81,0.30636785]
[1746902523699,0.67789031,653.86,652.81,0.30636785]
[1746902523998,0.26089031,653.85,652.81,0.30636785]
[1746902524696,0.30588523,653.84,652.81,0.30636785]
[1746902525001,0.56677554,653.84,652.81,0.30636785]
[1746902525298,0.26089031,653.83,652.81,0.30636785]
[1746902525499,0.30589458,653.82,652.81,0.30636785]
[1746902525693,0.56678489,653.82,652.81,0.30636785]
[1746902526199,0.26089031,653.81,652.81,0.30636785]
[1746902526399,0.30590394,653.8,652.81,0.30636785]
[1746902526600,0.26089031,653.79,652.81,0.30636785]
[1746902526900,0.26089031,653.78,652.81,0.30636785]
[1746902527204,0.26089031,653.77,652.81,0.30636785]
[1746902527701,0.26089031,653.76,652.81,0.30636785]
[1746902528097,0.26089031,653.75,652.81,0.30636785]
[1746902528604,0.52749773,653.74,652.81,0.30636785]
[1746902528803,0.26089031,653.73,652.81,0.30636785]
[1746902529107,0.26089031,653.72,652.81,0.30636785]
[1746902529402,0.26089031,653.71,652.81,0.30636785]
[1746902529903,0.26089031,653.7,652.81,0.30636785]
[1746902530104,0.26089031,653.69,652.81,0.30636785]
[1746902530405,0.25024573,653.69,652.81,0.30636785]
[1746902530604,0.25024573,653.68,652.81,0.30636785]
[1746902530805,0.26660742,653.74,652.81,0.30636785]
[1746902531105,0.3059367,653.73,652.81,0.30636785]
[1746902531507,0.26662172,653.72,652.81,0.30636785]
[1746902531707,0.30594606,653.71,652.81,0.30636785]
[1746902532307,0.26079514,653.7,652.81,0.30636785]
[1746902532508,0.30595542,653.69,652.81,0.30636785]
[1746902532807,0.26079514,653.68,652.81,0.30636785]
[1746902533307,0.30595542,653.69,652.81,0.30636785]
[1746902533708,0.26071776,653.67,652.81,0.30636785]
[1746902534003,0.26071776,653.68,652.81,0.30636785]
[1746902534804,0.26071776,653.67,652.81,0.30636785]
[1746902535308,0.26071776,653.68,652.81,0.30636785]
[1746902535510,0.30596478,653.67,652.81,0.30636785]
[1746902536110,0.26071776,653.66,652.81,0.30636785]
[1746902537610,0.26664215,653.65,652.81,0.30636785]
[1746902538712,0.26055597,653.64,652.81,0.30636785]
[1746902540614,0.26664215,653.63,652.81,0.30636785]
[1746902541013,0.26055597,653.62,652.81,0.30636785]
[1746902541714,0.26664215,653.63,652.81,0.30636785]
[1746902542014,0.26061385,653.62,652.81,0.30636785]
[1746902543816,0.26664215,653.61,652.81,0.30636785]
[1746902544217,0.26061385,653.6,652.81,0.30636785]
[1746902545819,0.26664215,653.61,652.81,0.30636785]
[1746902546116,0.2606274,653.6,652.81,0.30636785]
[1746902546514,0.26663398,653.59,652.81,0.30636785]
[1746902546818,0.2606274,653.58,652.81,0.30636785]
[1746902549817,0.26663398,653.57,652.81,0.30636785]
[1746902550116,0.2606274,653.56,652.81,0.30636785]
[1746902551522,0.364,653.55,652.81,0.30636785]
[1746902551719,0.2606274,653.54,652.81,0.30636785]
[1746902552625,0.26664521,653.53,652.81,0.30636785]
[1746902553522,0.2606274,653.52,652.81,0.30636785]
[1746902555520,0.2606274,653.54,652.81,0.30636785]
[1746902555726,0.26666054,653.51,652.81,0.30636785]
[1746902556028,0.2606274,653.5,652.81,0.30636785]
[1746902558129,0.26666054,653.51,652.81,0.30636785]
[1746902558626,0.26053816,653.5,652.81,0.30636785]
[1746902559127,0.2666636,653.5,652.81,0.30636785]
[1746902559931,0.26053816,653.49,652.81,0.30636785]
[1746902561630,0.26664419,653.48,652.81,0.30636785]
[1746902561932,0.26059909,653.47,652.81,0.30636785]
[1746902563831,0.26664419,653.48,652.81,0.30636785]
[1746902564429,0.364,653.55,652.81,0.30636785]
[1746902564635,0.26663704,653.47,652.81,0.30636785]
[1746902564831,0.364,653.55,652.81,0.30636785]
[1746902565638,0.26662274,653.54,652.81,0.30636785]
[1746902567334,0.364,653.55,652.81,0.30636785]
[1746902567738,0.26665747,653.53,652.81,0.30636785]
[1746902569139,0.26056431,653.52,652.81,0.30636785]
[1746902570642,0.26668608,653.51,652.81,0.30636785]
[1746902571242,0.26049458,653.5,652.81,0.30636785]
[1746902573645,0.26663806,653.49,652.81,0.30636785]
[1746902573944,0.26049458,653.48,652.81,0.30636785]
[1746902575154,0.26663806,653.49,652.81,0.30636785]
[1746902576053,0.46,653.48,652.81,0.30636785]
[1746902577350,0.2605501,653.47,652.81,0.30636785]
[1746902578458,0.2605501,653.47,651.53,0.96783169]
[1746902579157,0.2605501,653.47,651.54,0.28146988]
[1746902579358,0.2605501,653.47,651.55,0.28146988]
[1746902579759,0.26660946,653.46,651.55,0.28146988]
[1746902580057,0.26660946,653.46,651.56,0.28146988]
[1746902580261,0.2605501,653.45,651.86,0.96783169]
[1746902580463,0.2605501,653.45,651.87,0.28146988]
[1746902582564,0.2605501,653.45,651.91,0.96783169]
[1746902582763,0.26657168,653.44,651.91,0.96783169]
[1746902583262,0.2605501,653.43,651.92,0.28146988]
[1746902585666,0.26656658,653.42,651.92,0.28146988]
[1746902585966,0.2605501,653.41,651.92,0.28146988]
[1746902588568,0.26656658,653.4,651.92,0.28146988]
[1746902588871,0.2605501,653.39,651.94,0.96783169]
[1746902589069,0.2605501,653.39,651.95,0.28146988]
[1746902591667,0.26656351,653.38,651.95,0.28146988]
[1746902592070,0.2605501,653.37,651.94,0.28146988]
[1746902593371,0.2605501,653.37,651.95,0.96783169]
[1746902593672,0.2605501,653.37,651.96,0.28146988]
[1746902596171,0.26656351,653.38,651.96,0.28146988]
[1746902596573,0.26656351,653.38,651.89,0.28146988]
[1746902600375,1.96604543,654.55,651.89,0.28146988]
[1746902600676,0.26647676,653.37,651.89,0.28146988]
[1746902600970,0.464,654.54,651.9,0.28146988]
[1746902601471,0.26050825,654.53,651.89,0.28146988]
[1746902601870,0.26050825,654.52,651.89,0.28146988]
[1746902602175,0.52698603,654.52,651.89,0.28146988]
[1746902602475,0.26050825,654.51,651.89,0.28146988]
[1746902602977,0.26050825,654.5,651.89,0.28146988]
[1746902603273,0.26050825,654.49,651.89,0.28146988]
[1746902603778,0.26050825,654.48,651.89,0.28146988]
[1746902603976,0.26050825,654.47,651.89,0.28146988]
[1746902604578,0.26050825,654.46,651.89,0.28146988]
[1746902604979,0.26050825,654.45,651.89,0.28146988]
[1746902605580,0.26050825,654.44,651.89,0.28146988]
[1746902606583,0.26050825,654.43,651.89,0.28146988]
[1746902606782,0.26050825,654.42,651.89,0.28146988]
[1746902607182,0.26648391,654.43,651.89,0.28146988]
[1746902607183,0.26050825,654.41,651.89,0.28146988]
[1746902607383,1.96604543,654.39,651.9,0.96783169]
[1746902607786,0.26050825,654.38,651.91,0.28146988]
[1746902608286,0.26050825,654.37,651.91,0.28146988]
[1746902608585,0.26050825,654.36,651.91,0.28146988]
[1746902608786,0.26050825,654.35,651.91,0.28146988]
[1746902609181,0.30565616,654.33,652.02,0.30673905]
[1746902609391,1.96604543,654.26,652.02,0.30673905]
[1746902609588,1.96604543,654.26,652.03,0.28146988]
[1746902609789,0.26050825,654.25,652.03,0.28146988]
[1746902610088,0.26050825,654.24,652.03,0.28146988]
[1746902610387,1.96604543,654.26,652.02,0.30673905]
[1746902610791,0.26049743,654.25,652.03,0.28148492]
[1746902611187,0.26049743,654.24,652.03,0.28148492]
[1746902611489,1.96604543,654.22,652.03,0.28148492]
[1746902611995,0.26049743,654.21,652.03,0.28148492]
[1746902612588,0.52699562,654.2,652.05,0.30672494]
[1746902613292,0.26049743,654.19,652.06,0.28148492]
[1746902613492,1.96604543,654.15,652.08,0.30671083]
[1746902613691,0.30574962,654.13,652.08,0.30671083]
[1746902613888,0.26049743,654.12,652.09,0.28148492]
[1746902614395,0.26049743,654.11,652.09,0.28148492]
[1746902614596,0.26049743,654.1,652.09,0.28148492]
[1746902614894,0.26049743,654.09,652.09,0.28148492]
[1746902615391,0.26049743,654.08,652.09,0.28148492]
[1746902615592,0.52699868,654.08,652.09,0.28148492]
[1746902615791,0.26049743,654.07,652.09,0.28148492]
[1746902616195,0.26049743,654.06,652.09,0.28148492]
[1746902616496,0.26049743,654.05,652.09,0.28148492]
[1746902616795,0.26650125,654.08,652.09,0.28148492]
[1746902616796,0.26049743,654.04,652.09,0.28148492]
[1746902617097,0.26650125,654.08,652.09,0.28148492]
[1746902617098,0.26049743,654.03,652.09,0.28148492]
[1746902617395,0.26049743,654.02,652.09,0.28148492]
[1746902617999,0.26049743,654.07,652.09,0.28148492]
[1746902618192,0.26049743,654.07,652.11,0.30669672]
[1746902618594,0.30578701,654.05,652.11,0.30669672]
[1746902618802,0.26049743,654.04,652.12,0.28148492]
[1746902619100,0.26049743,654.04,652.11,0.30669672]
[1746902619294,0.30579637,654.03,652.11,0.30669672]
[1746902619701,0.26049743,654.02,652.11,0.30669672]
[1746902620101,0.30580572,654.01,652.11,0.30669672]
[1746902620601,0.26049743,654.0,652.11,0.30669672]
[1746902621004,0.30581507,653.99,652.11,0.30669672]
[1746902621505,0.26049743,653.98,652.11,0.30669672]
[1746902621806,0.30582442,653.97,652.11,0.30669672]
[1746902622205,0.26049743,653.96,652.11,0.30669672]
[1746902622503,0.30583377,653.95,652.11,0.30669672]
[1746902623000,0.26049743,653.94,652.11,0.30669672]
[1746902623201,0.30584313,653.93,652.11,0.30669672]
[1746902623404,0.26049743,653.92,652.11,0.30669672]
[1746902623607,0.30585248,653.91,652.11,0.30669672]
[1746902624306,0.26049743,653.9,652.11,0.30669672]
[1746902624506,0.30586184,653.89,652.11,0.30669672]
[1746902624905,0.26655535,653.88,652.11,0.30669672]
[1746902625405,0.56636862,653.87,652.11,0.30669672]
[1746902625909,0.26049743,653.86,652.11,0.30669672]
[1746902627711,0.26652677,653.85,652.11,0.30669672]
[1746902628109,0.26049743,653.84,652.11,0.30669672]
[1746902629217,0.26049743,653.84,652.12,0.28147893]
[1746902629412,0.26049743,653.84,652.14,0.30668261]
[1746902630016,0.26049743,653.84,652.15,0.28147893]
[1746902630313,0.26049743,653.84,652.17,0.3066685]
[1746902630616,0.26651962,653.83,652.17,0.3066685]
[1746902630816,0.26049743,653.82,652.18,0.28147893]
[1746902631917,0.26651962,653.83,652.17,0.3066685]
[1746902633414,0.30587119,653.87,652.17,0.3066685]
[1746902633618,0.2664686,653.82,652.17,0.3066685]
[1746902639423,0.302,653.83,652.17,0.3066685]
[1746902639617,0.52724105,653.81,652.17,0.3066685]
[1746902639822,0.26647166,653.81,652.17,0.3066685]
[1746902641225,0.2607606,653.8,652.17,0.3066685]
[1746902641619,0.2607606,653.8,652.18,0.28139879]
[1746902641825,0.2607606,653.8,652.2,0.3066544]
[1746902642627,0.2607606,653.82,652.2,0.3066544]
[1746902642827,0.26646656,653.79,652.2,0.3066544]
[1746902643328,0.2607606,653.78,652.2,0.3066544]
[1746902645126,0.26646656,653.79,652.2,0.3066544]
[1746902645530,0.26079659,653.78,652.21,0.281388]
[1746902645729,0.52726417,653.78,652.21,0.281388]
[1746902646128,0.26646758,653.78,652.21,0.281388]
[1746902646435,0.26079659,653.77,652.21,0.281388]
[1746902647135,0.26079659,653.77,652.23,0.30664029]
[1746902647530,0.26079659,653.77,652.24,0.281388]
[1746902648632,0.26079659,653.82,652.24,0.281388]
[1746902648826,0.2664227,653.76,652.24,0.281388]
[1746902651031,0.44,653.75,652.26,0.30662619]
[1746902651434,0.44,653.75,652.27,0.281388]
[1746902651731,0.26642882,653.74,652.29,0.30661208]
[1746902652234,0.26642882,653.74,652.3,0.281388]
[1746902652434,0.26642882,653.74,652.32,0.30659798]
[1746902652935,0.26642882,653.74,652.33,0.281388]
[1746902653132,0.26642882,653.74,652.35,0.30658388]
[1746902654337,0.44,653.75,652.35,0.30658388]
[1746902654636,0.26643188,653.73,652.35,0.30658388]
[1746902658139,0.26643188,653.73,652.36,0.28131636]
[1746902658439,0.26643188,653.73,652.38,0.30656979]
[1746902659139,0.26094304,653.72,652.39,0.28131598]
[1746902659332,0.26094304,653.72,652.41,0.30655569]
[1746902659540,0.26094304,653.72,652.42,0.28131598]
[1746902659740,0.26094304,653.72,652.44,0.30654159]
[1746902660236,0.26094304,653.72,652.45,0.28131598]
[1746902660438,0.26094304,653.72,652.47,0.3065275]
[1746902660843,0.26640842,653.72,652.48,0.28131598]
[1746902661241,0.26640842,653.72,652.5,0.3065134]
[1746902663441,0.44,653.75,652.5,0.3065134]
[1746902663842,0.26641862,653.72,652.5,0.3065134]
[1746902666447,0.44,653.75,652.5,0.3065134]
[1746902666847,0.26628713,653.74,652.5,0.3065134]
[1746902669442,0.44,653.75,652.5,0.3065134]
[1746902669838,0.26640944,653.73,652.5,0.3065134]
[1746902671045,0.26640944,653.73,652.51,0.28131472]
[1746902671449,0.26640944,653.73,652.53,0.30649931]
[1746902672346,0.26640944,653.73,652.54,0.28131472]
[1746902672541,1.96604543,654.85,652.54,0.28131472]
[1746902672742,0.26623111,653.72,652.54,0.28131472]
[1746902673039,0.30546009,654.75,652.54,0.28131472]
[1746902673439,0.30546009,654.75,652.56,0.30648522]
[1746902673940,0.26085664,654.74,652.56,0.30648522]
[1746902674146,0.30547409,654.72,652.56,0.30648522]
[1746902674637,0.26085664,654.71,652.56,0.30648522]
[1746902674844,0.30548809,654.69,652.56,0.30648522]
[1746902675243,0.26085664,654.68,652.56,0.30648522]
[1746902675442,0.30550209,654.66,652.56,0.30648522]
[1746902675741,0.26085664,654.65,652.56,0.30648522]
[1746902676046,0.26085664,654.64,652.56,0.30648522]
[1746902676847,0.26085664,654.63,652.56,0.30648522]
[1746902677148,0.26085664,654.62,652.56,0.30648522]
[1746902677451,0.26085664,654.61,652.56,0.30648522]
[1746902678151,0.26085664,654.6,652.56,0.30648522]
[1746902678451,0.30553942,654.58,652.56,0.30648522]
[1746902678847,0.26085664,654.57,652.57,0.28129074]
[1746902679150,0.26085664,654.56,652.57,0.28129074]
[1746902679351,0.26085664,654.56,652.59,0.30647113]
[1746902679747,0.26085664,654.55,652.59,0.30647113]
[1746902680551,0.26085664,654.54,652.59,0.30647113]
[1746902680952,0.26085664,654.53,652.6,0.2812913]
[1746902681149,0.26085664,654.52,652.6,0.2812913]
[1746902681353,0.26085664,654.51,652.6,0.2812913]
[1746902681653,0.52716619,654.51,652.6,0.2812913]
[1746902681955,0.26085664,654.5,652.6,0.2812913]
[1746902682154,0.26085664,654.49,652.6,0.2812913]
[1746902682555,0.26085664,654.48,652.62,0.30645705]
[1746902682955,0.56644742,654.47,652.63,0.2812913]
[1746902683155,0.30559545,654.46,652.65,0.30644296]
[1746902683553,0.26093248,654.45,652.65,0.30644296]
[1746902683752,0.30559545,654.46,652.65,0.30644296]
[1746902683753,0.56653727,654.44,652.65,0.30644296]
[1746902683954,0.30560946,654.43,652.65,0.30644296]
[1746902684248,0.56654194,654.43,652.65,0.30644296]
[1746902684448,0.26093248,654.42,652.65,0.30644296]
[1746902684651,0.3056188,654.41,652.65,0.30644296]
[1746902684849,0.56655128,654.41,652.65,0.30644296]
[1746902685157,0.26093248,654.4,652.65,0.30644296]
[1746902685458,0.30562814,654.39,652.65,0.30644296]
[1746902685655,0.56656062,654.39,652.65,0.30644296]
[1746902685855,0.26093248,654.38,652.65,0.30644296]
[1746902686059,0.30563748,654.37,652.65,0.30644296]
[1746902686358,0.26093248,654.36,652.65,0.30644296]
[1746902686657,0.5665793,654.35,652.65,0.30644296]
[1746902686958,0.30565149,654.34,652.65,0.30644296]
[1746902687160,0.56658397,654.34,652.65,0.30644296]
[1746902687460,0.26093248,654.33,652.65,0.30644296]
[1746902687657,0.30566083,654.32,652.65,0.30644296]
[1746902687865,0.26093248,654.31,652.65,0.30644296]
[1746902688265,0.56660266,654.3,652.66,0.28129979]
[1746902688461,0.30567018,654.3,652.68,0.30642887]
[1746902688965,0.26098973,654.29,652.69,0.28129942]
[1746902689167,0.26098973,654.29,652.71,0.30641479]
[1746902689363,0.26098973,654.28,652.71,0.30641479]
[1746902689768,0.26098973,654.27,652.71,0.30641479]
[1746902690269,0.26098973,654.26,652.72,0.28130023]
[1746902690468,0.26098973,654.26,652.74,0.30640071]
[1746902690763,0.26098973,654.25,652.74,0.30640071]
[1746902691267,0.26098973,654.24,652.74,0.30640071]
[1746902691666,0.26098973,654.23,652.74,0.30640071]
[1746902692069,0.26098973,654.22,652.74,0.30640071]
[1746902692468,0.26098973,654.21,652.74,0.30640071]
[1746902692870,0.26098973,654.29,652.74,0.30640071]
[1746902693269,0.26098973,654.28,652.74,0.30640071]
[1746902693669,0.26098973,654.27,652.74,0.30640071]
[1746902693869,0.52732679,654.27,652.74,0.30640071]
[1746902694072,0.26098973,654.26,652.74,0.30640071]
[1746902694266,0.26098973,654.25,652.74,0.30640071]
[1746902694972,0.26098973,654.24,652.74,0.30640071]
[1746902695571,0.26098973,654.23,652.74,0.30640071]
[1746902695871,0.26098973,654.22,652.74,0.30640071]
[1746902696371,0.26098973,654.21,652.74,0.30640071]
[1746902696973,0.26633095,654.2,652.74,0.30640071]
[1746902697174,0.26098973,654.19,652.74,0.30640071]
[1746902699674,0.26098973,654.29,652.74,0.30640071]
[1746902699876,0.26632789,654.18,652.74,0.30640071]
[1746902700175,0.26098973,654.28,652.74,0.30640071]
[1746902700375,0.26098973,654.27,652.74,0.30640071]
[1746902700776,0.2663442,654.26,652.74,0.30640071]
[1746902701276,0.26098973,654.25,652.74,0.30640071]
[1746902701976,0.30569821,654.24,652.74,0.30640071]
[1746902702176,0.26098973,654.23,652.74,0.30640071]
[1746902702376,0.30570756,654.22,652.74,0.30640071]
[1746902702576,0.26098973,654.21,652.74,0.30640071]
[1746902702875,0.3057169,654.2,652.74,0.30640071]
[1746902703281,0.26098973,654.19,652.74,0.30640071]
[1746902703477,0.30572625,654.18,652.74,0.30640071]
[1746902703673,0.26098973,654.17,652.74,0.30640071]
[1746902703882,0.30573559,654.16,652.74,0.30640071]
[1746902704172,0.26098973,654.15,652.74,0.30640071]
[1746902704377,0.30574494,654.14,652.74,0.30640071]
[1746902705072,0.26098973,654.13,652.74,0.30640071]
[1746902705273,0.30575429,654.12,652.74,0.30640071]
[1746902705878,0.26098973,654.11,652.74,0.30640071]
[1746902706282,0.30576364,654.1,652.74,0.30640071]
[1746902706579,0.26098973,654.09,652.74,0.30640071]
[1746902706781,0.30577299,654.08,652.74,0.30640071]
[1746902707480,0.26098973,654.07,652.74,0.30640071]
[1746902707674,0.30578234,654.06,652.74,0.30640071]
[1746902708181,0.26098973,654.05,652.74,0.30640071]
[1746902709183,0.26098973,654.04,652.74,0.30640071]
[1746902709584,0.26098973,654.03,652.74,0.30640071]
[1746902709884,0.26098973,654.02,652.74,0.30640071]
[1746902710984,0.26098973,654.01,652.74,0.30640071]
[1746902711185,0.52746955,654.01,652.74,0.30640071]
[1746902711386,0.26647982,654.01,652.74,0.30640071]
[1746902711682,0.26098973,654.0,652.74,0.30640071]
[1746902711986,0.26098973,653.99,652.74,0.30640071]
[1746902712385,0.26098973,653.98,652.74,0.30640071]
[1746902712686,0.26098973,653.97,652.74,0.30640071]
[1746902712987,0.26098973,654.0,652.74,0.30640071]
[1746902713286,0.26098973,653.99,652.74,0.30640071]
[1746902713883,0.26647982,654.01,652.74,0.30640071]
[1746902714090,0.26092184,653.98,652.74,0.30640071]
[1746902714388,0.26092184,653.97,652.74,0.30640071]
[1746902714785,0.26092184,653.96,652.74,0.30640071]
[1746902714985,0.26092184,653.95,652.74,0.30640071]
[1746902715389,0.26092184,653.94,652.74,0.30640071]
[1746902715684,0.26092184,653.93,652.74,0.30640071]